fUST/lending_fUST_20250602
["ID","MTS","AMOUNT","RATE_DAILY","PERIOD"]
[363750141,1748860242415,-500.0,0.00019178,2]
[363750143,1748860242425,-500.0,0.00019178,2]
[363750145,1748860242434,-151.0,0.00019178,2]
[363750147,1748860242444,-430.0,0.00019178,2]
[363750149,1748860242455,-430.0,0.00019178,2]
[363750151,1748860242465,-430.0,0.00019178,2]
[363750153,1748860242475,-500.0,0.00019178,2]
[363750155,1748860242485,-500.0,0.00019178,2]
[363750157,1748860242494,-500.0,0.00019178,2]
[363750159,1748860242504,-500.0,0.00019178,2]
[363750162,1748860242514,-500.0,0.00019178,2]
[363750164,1748860242524,-500.0,0.00019178,2]
[363750166,1748860242534,-500.0,0.00019178,2]
[363750178,1748860242632,-500.0,0.00019178,2]
[363750180,1748860242641,-500.0,0.00019178,2]
[363750182,1748860242651,-500.0,0.00019178,2]
[363750184,1748860242661,-500.0,0.00019178,2]
[363750186,1748860242670,-500.0,0.00019178,2]
[363750188,1748860242679,-500.0,0.00019178,2]
[363750190,1748860242688,-500.0,0.00019178,2]
[363750192,1748860242698,-200.0,0.00019178,2]
[363750194,1748860242707,-989.29348595,0.00019178,2]
[363750196,1748860242716,-989.29348595,0.00019178,2]
[363750198,1748860242726,-989.29348595,0.00019178,2]
[363750200,1748860242735,-989.29348595,0.00019178,2]
[363750202,1748860242745,-989.29348595,0.00019178,2]
[363750204,1748860242755,-989.29348595,0.00019178,2]
[363750206,1748860242764,-989.29348595,0.00019178,2]
[363750208,1748860242773,-989.29348595,0.00019178,2]
[363750210,1748860242783,-989.29348595,0.00019178,2]
[363750212,1748860242792,-989.29348595,0.00019178,2]
[363750214,1748860242801,-989.29348595,0.00019178,2]
[363750216,1748860242811,-989.29348595,0.00019178,2]
[363750218,1748860242820,-989.29348595,0.00019178,2]
[363750220,1748860242830,-989.29348595,0.00019178,2]
[363750222,1748860242840,-989.29348595,0.00019178,2]
[363750224,1748860242849,-989.29348595,0.00019178,2]
[363750226,1748860242859,-989.29348595,0.00019178,2]
[363750228,1748860242869,-989.29348595,0.00019178,2]
[363750230,1748860242878,-989.29348595,0.00019178,2]
[363750232,1748860242887,-989.29348595,0.00019178,2]
[363750234,1748860242896,-989.29348595,0.00019178,2]
[363750236,1748860242906,-3489.29348588,0.00019178,2]
[363750238,1748860242915,-151.0,0.00019178,2]
[363750240,1748860242925,-151.0,0.00019178,2]
[363750242,1748860242934,-500.0,0.00019178,2]
[363750244,1748860242944,-500.0,0.00019178,2]
[363750246,1748860242953,-500.0,0.00019178,2]
[363750248,1748860242962,-500.0,0.00019178,2]
[363750250,1748860242971,-500.0,0.00019178,2]
[363750252,1748860242981,-500.0,0.00019178,2]
[363750254,1748860242990,-155.28407616,0.00019178,2]
[363750287,1748860243479,-430.0,0.00016708,2]
[363750289,1748860243489,-430.0,0.00016982,2]
[363750291,1748860243499,-430.0,0.00016983,2]
[363750293,1748860243509,-430.0,0.00017257,2]
[363750295,1748860243519,-430.0,0.00017531,2]
[363750297,1748860243528,-430.0,0.00017805,2]
[363750299,1748860243538,-378.554697,0.00018079,2]
[363750301,1748860243549,-51.445303,0.00018079,2]
[363750303,1748860243559,-290.0,0.00018353,2]
[363750305,1748860243568,-500.0,0.00018629,2]
[363750307,1748860243577,-500.0,0.00018629,2]
[363750309,1748860243587,-344.71592384,0.00019178,2]
[363750311,1748860243596,-500.0,0.00019178,2]
[363750314,1748860243606,-500.0,0.00019178,2]
[363750316,1748860243615,-500.0,0.00019178,2]
[363750318,1748860243624,-500.0,0.00019178,2]
[363750320,1748860243634,-414.30815897,0.00019178,2]
[363750322,1748860243644,-151.0,0.00019178,2]
[363750324,1748860243653,-256.846751,0.00019178,2]
[363750326,1748860243663,-151.0,0.00019193,2]
[363750328,1748860243674,-156.587,0.00019233,2]
[363750330,1748860243684,-151.0,0.00019234,2]
[363750332,1748860243694,-280.838181,0.00019234,2]
[363750334,1748860243704,-321.011762,0.00019234,2]
[363750336,1748860243714,-321.011762,0.00019234,2]
[363750338,1748860243723,-151.0,0.00019234,2]
[363750340,1748860243735,-243.429181,0.00019234,2]
[363750342,1748860243745,-243.429181,0.00019234,2]
[363750344,1748860243755,-151.0,0.00019234,2]
[363750346,1748860243764,-151.0,0.00019234,2]
[363750348,1748860243774,-151.0,0.00019234,2]
[363750350,1748860243785,-232.833121,0.00019234,2]
[363750352,1748860243794,-232.833121,0.00019234,2]
[363750354,1748860243805,-579.678781,0.00019234,2]
[363750356,1748860243815,-579.678781,0.00019234,2]
[363750358,1748860243825,-151.743375,0.00019234,2]
[363750360,1748860243836,-151.0,0.00019234,2]
[363750362,1748860243846,-151.0,0.00019234,2]
[363750364,1748860243856,-151.0,0.00019234,2]
[363750366,1748860243866,-151.0,0.00019234,2]
[363750368,1748860243876,-271.396556,0.00019234,2]
[363750370,1748860243886,-298.296204,0.00019234,2]
[363750372,1748860243895,-298.296204,0.00019234,2]
[363750374,1748860243906,-151.0,0.00019234,2]
[363750376,1748860243917,-207.4,0.00019234,2]
[363750378,1748860243927,-151.47158686,0.00019234,2]
[363750380,1748860243937,-273.13548576,0.00019234,2]
[363750382,1748860243948,-1500.0,0.00019234,2]
[363750384,1748860243957,-1500.0,0.00019234,2]
[363750386,1748860243965,-500.0,0.00019234,2]
[363750388,1748860243974,-1500.0,0.00019234,2]
[363750390,1748860243983,-500.0,0.00019234,2]
[363750392,1748860243992,-1500.0,0.00019234,2]
[363750394,1748860244002,-500.0,0.00019234,2]
[363750396,1748860244011,-500.0,0.00019234,2]
[363750398,1748860244025,-5000.0,0.00019234,2]
[363750400,1748860244034,-500.0,0.00019234,2]
[363750402,1748860244044,-500.0,0.00019234,2]
[363750404,1748860244053,-500.0,0.00019234,2]
[363750406,1748860244063,-500.0,0.00019234,2]
[363750408,1748860244073,-1500.0,0.00019234,2]
[363750410,1748860244083,-500.0,0.00019234,2]
[363750412,1748860244094,-1500.0,0.00019234,2]
[363750414,1748860244104,-1500.0,0.00019234,2]
[363750416,1748860244114,-500.0,0.00019234,2]
[363750418,1748860244124,-1500.0,0.00019234,2]
[363750421,1748860244134,-500.0,0.00019234,2]
[363750423,1748860244144,-1500.0,0.00019234,2]
[363750425,1748860244153,-500.0,0.00019234,2]
[363750426,1748860244163,-1500.0,0.00019234,2]
[363750428,1748860244173,-500.0,0.00019234,2]
[363750431,1748860244183,-500.0,0.00019234,2]
[363750433,1748860244193,-1500.0,0.00019234,2]
[363750445,1748860244202,-500.0,0.00019234,2]
[363750447,1748860244312,-1500.0,0.00019234,2]
[363750449,1748860244323,-790.85449925,0.00019234,2]
[363750451,1748860244332,-202.91049612,0.00019234,2]
[363750453,1748860244342,-162.380719,0.00019288,2]
[363750456,1748860244353,-5000.0,0.000193,3]
[363750458,1748860244363,-185.465959,0.000193,2]
[363750460,1748860244372,-151.0,0.000193,2]
[363750462,1748860244383,-151.0,0.000193,2]
[363750464,1748860244393,-1344.846668,0.000193,2]
[363750466,1748860244402,-1344.846668,0.000193,2]
[363750468,1748860244412,-2900.93542244,0.00019314,2]
[363750470,1748860244422,-151.0,0.00019329,2]
[363750472,1748860244432,-151.0,0.00019329,2]
[363750474,1748860244441,-152.062489,0.00019329,2]
[363750476,1748860244450,-151.0,0.00019329,2]
[363750478,1748860244460,-615.824992,0.00019329,2]
[363750480,1748860244470,-615.824992,0.00019329,2]
[363750482,1748860244479,-151.0,0.00019329,2]
[363750484,1748860244488,-158.08511,0.00019329,2]
[363750486,1748860244497,-158.08511,0.00019329,2]
[363750488,1748860244507,-268.223845,0.00019329,2]
[363750490,1748860244516,-268.223845,0.00019329,2]
[363750492,1748860244526,-151.0,0.00019329,2]
[363750494,1748860244536,-151.0,0.00019329,2]
[363750496,1748860244545,-151.0,0.00019329,2]
[363750498,1748860244555,-151.0,0.00019329,2]
[363750500,1748860244565,-151.0,0.00019329,2]
[363750502,1748860244575,-151.0,0.00019329,2]
[363750504,1748860244586,-151.0,0.00019329,2]
[363750506,1748860244595,-151.0,0.00019329,2]
[363750508,1748860244605,-41218.01644711,0.00019329,2]
[363750510,1748860244615,-151.0,0.00019331,10]
[363750512,1748860244624,-168.94265941,0.00019343,2]
[363750514,1748860244635,-798.05,0.00019447,2]
[363750516,1748860244644,-1886.9,0.00019447,2]
[363750518,1748860244654,-430.0,0.00019447,2]
[363750520,1748860244664,-4271.47,0.00019447,2]
[363750522,1748860244674,-430.0,0.00019447,2]
[363750524,1748860244683,-2886.79,0.00019447,2]
[363750526,1748860244693,-430.0,0.00019448,2]
[363750528,1748860244703,-430.0,0.00019448,2]
[363750529,1748860244713,-1055.23,0.00019448,2]
[363750532,1748860244723,-1064.4,0.00019448,2]
[363750534,1748860244733,-430.0,0.00019448,2]
[363750536,1748860244743,-511.43,0.00019448,2]
[363750538,1748860244751,-248.41815696,0.00019448,2]
[363750540,1748860244761,-243.7,0.00019448,2]
[363750541,1748860244772,-430.0,0.00019448,2]
[363750543,1748860244781,-5138.31,0.00019448,2]
[363750545,1748860244791,-430.0,0.00019448,2]
[363750547,1748860244801,-647.78,0.00019448,2]
[363750549,1748860244810,-615.98,0.00019448,2]
[363750551,1748860244821,-430.0,0.00019448,2]
[363750554,1748860244832,-430.0,0.00019448,2]
[363750556,1748860244843,-430.0,0.00019448,2]
[363750558,1748860244852,-430.0,0.00019448,2]
[363750560,1748860244862,-632.02,0.00019448,2]
[363750562,1748860244871,-307.09800826,0.00019448,2]
[363750564,1748860244881,-666.5,0.00019448,2]
[363750566,1748860244891,-2108.61,0.00019449,2]
[363750568,1748860244901,-151.0,0.00019449,2]
[363750570,1748860244912,-151.0,0.00019449,2]
[363750572,1748860244921,-151.0,0.00019449,2]
[363750574,1748860244933,-154.059257,0.00019449,2]
[363750576,1748860244944,-151.0,0.00019449,2]
[363750578,1748860244954,-151.7677,0.00019449,2]
[363750580,1748860244964,-151.0,0.00019449,2]
[363750582,1748860244975,-1586.81,0.00019449,2]
[363750584,1748860244984,-637.97,0.00019449,2]
[363750586,1748860244993,-489.28,0.00019449,2]
[363750588,1748860245003,-626.59,0.00019449,2]
[363750590,1748860245013,-151.0,0.00019449,2]
[363750592,1748860245028,-151.0,0.00019449,2]
[363750594,1748860245038,-2125.33,0.00019449,2]
[363750596,1748860245047,-151.0,0.00019449,2]
[363750598,1748860245058,-151.0,0.00019449,2]
[363750600,1748860245068,-298.296204,0.00019449,2]
[363750603,1748860245079,-298.296204,0.00019449,2]
[363750605,1748860245089,-321.011762,0.0001945,2]
[363750607,1748860245099,-321.011762,0.0001945,2]
[363750609,1748860245110,-151.0,0.0001945,2]
[363750611,1748860245120,-243.429181,0.0001945,2]
[363750613,1748860245129,-243.429181,0.0001945,2]
[363750615,1748860245139,-232.833121,0.0001945,2]
[363750617,1748860245150,-232.833121,0.0001945,2]
[363750619,1748860245159,-579.678781,0.0001945,2]
[363750621,1748860245169,-579.678781,0.0001945,2]
[363750623,1748860245178,-224622.47577,0.00019499,2]
[363750625,1748860245188,-8739.29641174,0.000195,2]
[363750627,1748860245198,-2900.93542244,0.00019555,2]
[363750629,1748860245208,-1000.0,0.0001958,2]
[363750631,1748860245217,-1147.30181451,0.00019605,2]
[363750633,1748860245227,-151.0,0.00019616,2]
[363750635,1748860245237,-151.0,0.00019616,2]
[363750637,1748860245247,-151.0,0.00019616,2]
[363750639,1748860245257,-2000.0,0.00019616,2]
[363750640,1748860245267,-2000.0,0.00019616,2]
[363750642,1748860245276,-2000.0,0.00019616,2]
[363750644,1748860245286,-2000.0,0.00019616,2]
[363750647,1748860245296,-1655.50454497,0.00019616,2]
[363750649,1748860245307,-303.245509,0.00019616,2]
[363750651,1748860245317,-303.245509,0.00019616,2]
[363750653,1748860245327,-151.0,0.00019616,2]
[363750655,1748860245337,-1344.846668,0.00019616,2]
[363750657,1748860245348,-1344.846668,0.00019616,2]
[363750659,1748860245358,-471.8,0.00019638,2]
[363750661,1748860245367,-173.1014856,0.00019638,2]
[363750663,1748860245377,-151.0,0.00019642,11]
[363750665,1748860245386,-632.26476029,0.00019648,2]
[363750667,1748860245396,-500.0,0.00019648,2]
[363750669,1748860245406,-500.0,0.00019648,2]
[363750671,1748860245416,-500.0,0.00019648,2]
[363750673,1748860245425,-500.0,0.00019648,2]
[363750675,1748860245434,-500.0,0.00019648,2]
[363750677,1748860245444,-500.0,0.00019648,2]
[363750678,1748860245452,-505.162816,0.0001965,2]
[363750680,1748860245463,-151.0,0.00019681,2]
[363750683,1748860245472,-1500.0,0.00019696,2]
[363750684,1748860245483,-151.0,0.000197,2]
[363750686,1748860245492,-184.20315508,0.00019714,2]
[363750689,1748860245502,-798.05,0.00019721,2]
[363750691,1748860245512,-1886.9,0.00019721,2]
[363750693,1748860245522,-430.0,0.00019721,2]
[363750695,1748860245533,-4271.47,0.00019721,2]
[363750696,1748860245543,-309.65187324,0.00019721,2]
[363750699,1748860245553,-2886.79,0.00019721,2]
[363750701,1748860245563,-430.0,0.00019722,2]
[363750703,1748860245572,-335.42,0.00019722,2]
[363750705,1748860245582,-1055.23,0.00019722,2]
[363750707,1748860245593,-1064.4,0.00019722,2]
[363750709,1748860245602,-430.0,0.00019722,2]
[363750711,1748860245612,-511.43,0.00019722,2]
[363750713,1748860245623,-430.0,0.00019722,2]
[363750715,1748860245632,-5138.31,0.00019722,2]
[363750717,1748860245642,-430.0,0.00019722,2]
[363750719,1748860245651,-647.78,0.00019722,2]
[363750721,1748860245660,-615.98,0.00019722,2]
[363750723,1748860245670,-537.5,0.00019722,2]
[363750725,1748860245680,-430.0,0.00019722,2]
[363750727,1748860245689,-430.0,0.00019722,2]
[363750729,1748860245698,-430.0,0.00019722,2]
[363750731,1748860245707,-632.02,0.00019722,2]
[363750733,1748860245717,-666.5,0.00019722,2]
[363750735,1748860245726,-2108.61,0.00019723,2]
[363750737,1748860245736,-151.0,0.00019723,2]
[363750739,1748860245745,-1586.81,0.00019723,2]
[363750741,1748860245754,-637.97,0.00019723,2]
[363750743,1748860245765,-489.28,0.00019723,2]
[363750745,1748860245776,-626.59,0.00019723,2]
[363750747,1748860245786,-2125.33,0.00019723,2]
[363750749,1748860245797,-155.0,0.00019724,2]
[363750751,1748860245806,-151.0,0.00019726,2]
[363750753,1748860245815,-151.0,0.00019726,2]
[363750755,1748860245825,-500.0,0.00019771,2]
[363750757,1748860245835,-151.0,0.00019782,2]
[363750759,1748860245844,-151.0,0.00019782,2]
[363750761,1748860245854,-5000.0,0.00019782,2]
[363750763,1748860245864,-2900.93542244,0.00019797,2]
[363750765,1748860245873,-151.0,0.000198,2]
[363750767,1748860245883,-587.0,0.0001994,2]
[363750769,1748860245893,-587.0,0.00019941,2]
[363750771,1748860245902,-151.0,0.00019953,13]
[363750773,1748860245912,-438.13,0.00019959,2]
[363750775,1748860245921,-211.84498,0.00019969,2]
[363750777,1748860245931,-151.0,0.00019969,2]
[363750779,1748860245941,-151.0,0.00019969,2]
[363750789,1748860246030,-500.0,0.00019973,2]
[363750791,1748860246040,-500.0,0.00019973,2]
[363750793,1748860246050,-400.70791248,0.00019973,2]
[363750795,1748860246060,-500.0,0.00019973,2]
[363750798,1748860246071,-500.0,0.00019973,2]
[363750800,1748860246080,-500.0,0.00019973,2]
[363750802,1748860246090,-500.0,0.00019973,2]
[363750804,1748860246100,-500.0,0.00019973,2]
[363750806,1748860246109,-500.0,0.00019973,2]
[363750808,1748860246118,-500.0,0.00019973,2]
[363750810,1748860246128,-500.0,0.00019973,2]
[363750812,1748860246138,-502.06570242,0.00019973,2]
[363750814,1748860246147,-500.0,0.00019973,2]
[363750816,1748860246157,-500.0,0.00019973,2]
[363750818,1748860246166,-500.0,0.00019973,2]
[363750820,1748860246176,-500.0,0.00019973,2]
[363750822,1748860246186,-503.02987642,0.00019973,2]
[363750824,1748860246195,-538.8238479,0.00019973,2]
[363750826,1748860246204,-500.0,0.00019973,2]
[363750828,1748860246214,-600.0,0.00019973,2]
[363750830,1748860246223,-266.89307214,0.00019973,2]
[363750832,1748860246232,-500.0,0.00019973,2]
[363750834,1748860246242,-501.30290786,0.00019973,2]
[363750836,1748860246252,-538.80581164,0.00019973,2]
[363750839,1748860246262,-502.47866998,0.00019973,2]
[363750841,1748860246273,-217.33035506,0.00019973,2]
[363750843,1748860246283,-500.0,0.00019973,2]
[363750845,1748860246293,-271.76850087,0.00019973,2]
[363750847,1748860246303,-500.0,0.00019973,2]
[363750849,1748860246314,-500.0,0.00019973,2]
[363750851,1748860246324,-513.98861648,0.00019973,2]
[363750853,1748860246334,-500.0,0.00019973,2]
[363750855,1748860246345,-500.0,0.00019973,2]
[363750857,1748860246354,-500.0,0.00019973,2]
[363750860,1748860246363,-798.05,0.00019995,2]
[363750862,1748860246373,-1886.9,0.00019995,2]
[363750864,1748860246383,-430.0,0.00019995,2]
[363750866,1748860246393,-4271.47,0.00019995,2]
[363750868,1748860246402,-2886.79,0.00019995,2]
[363750870,1748860246413,-313.08811078,0.00019996,2]
[363750872,1748860246422,-1055.23,0.00019996,2]
[363750874,1748860246432,-1064.4,0.00019996,2]
[363750876,1748860246441,-430.0,0.00019996,2]
[363750878,1748860246450,-511.43,0.00019996,2]
[363750880,1748860246460,-430.0,0.00019996,2]
[363750882,1748860246469,-5138.31,0.00019996,2]
[363750884,1748860246477,-538.76,0.00019996,2]
[363750886,1748860246486,-647.78,0.00019996,2]
[363750888,1748860246494,-615.98,0.00019996,2]
[363750890,1748860246504,-430.0,0.00019996,2]
[363750892,1748860246514,-430.0,0.00019996,2]
[363750894,1748860246523,-430.0,0.00019996,2]
[363750896,1748860246532,-632.02,0.00019996,2]
[363750898,1748860246541,-666.5,0.00019996,2]
[363750900,1748860246551,-2108.61,0.00019997,2]
[363750902,1748860246561,-151.0,0.00019997,2]
[363750904,1748860246569,-151.0,0.00019997,2]
[363750906,1748860246579,-151.0,0.00019997,2]
[363750908,1748860246587,-1586.81,0.00019997,2]
[363750910,1748860246596,-637.97,0.00019997,2]
[363750912,1748860246605,-489.28,0.00019997,2]
[363750914,1748860246615,-626.59,0.00019997,2]
[363750916,1748860246623,-2125.33,0.00019997,2]
[363750918,1748860246631,-151.0,0.00019997,2]
[363750920,1748860246640,-151.0,0.00019997,2]
[363750922,1748860246648,-151.0,0.00019999,2]
[363750925,1748860246657,-151.600532,0.00019999,2]
[363750927,1748860246666,-151.0,0.00019999,2]
[363750929,1748860246674,-151.0,0.00019999,2]
[363750931,1748860246681,-615.824992,0.00019999,2]
[363750932,1748860246689,-615.824992,0.00019999,2]
[363750934,1748860246696,-151.0,0.00019999,2]
[363750936,1748860246705,-151.0,0.00019999,2]
[363750938,1748860246714,-158.08511,0.00019999,2]
[363750940,1748860246724,-158.08511,0.00019999,2]
[363750942,1748860246734,-268.223845,0.00019999,2]
[363750944,1748860246743,-268.223845,0.00019999,2]
[363750946,1748860246753,-151.0,0.00019999,2]
[363750948,1748860246763,-151.0,0.00019999,2]
[363750950,1748860246774,-151.0,0.00019999,2]
[363750952,1748860246784,-151.0,0.00019999,2]
[363750954,1748860246795,-298.296204,0.00019999,2]
[363750956,1748860246804,-298.296204,0.00019999,2]
[363750958,1748860246814,-97911.19285949,0.0002,2]
[363750960,1748860246823,-223.95390513,0.0002,2]
[363750962,1748860246832,-54584.63779795,0.0002,2]
[363751395,1748860488360,317.36978521,0.00016,2]
[363751411,1748861179964,10000.0,0.00015599,2]
[363751413,1748861207600,5000.0,0.00016,2]
[363751416,1748861223143,352.81231458,0.00016,2]
[363751417,1748861223169,4299.56721794,0.00016,2]
[363751418,1748861227374,158.704216,0.00013699,2]
[363751420,1748861268183,5000.0,0.00016,2]
[363751421,1748861283741,3992.04199825,0.00016,2]
[363751426,1748861328160,2378.5728836,0.00016,2]
[363751427,1748861328184,2621.4271164,0.00016,2]
[363751433,1748861344572,2480.5089965,0.00016,2]
[363751434,1748861389763,2984.89199825,0.00016,2]
[363751436,1748861405440,3022.25800175,0.00016,2]
[363751452,1748861431943,-203.89122478,0.00016206,2]
[363751454,1748861431952,-173.34707516,0.00016498,2]
[363751456,1748861431962,-300.0,0.00016597,2]
[363751458,1748861431971,-300.0,0.00016597,2]
[363751460,1748861431981,-57.66170006,0.00016597,2]
[363751470,1748861432093,-97.33829994,0.00016597,2]
[363751472,1748861432103,-430.0,0.00016598,2]
[363751474,1748861432112,-430.0,0.00016598,2]
[363751476,1748861432122,-1506.98,0.00016598,2]
[363751478,1748861432132,-430.0,0.00016598,2]
[363751480,1748861432141,-527.66,0.00016598,2]
[363751483,1748861432150,-450.0,0.00016598,2]
[363751485,1748861432160,-430.0,0.00016598,2]
[363751487,1748861432169,-430.0,0.00016598,2]
[363751490,1748861432179,-83.42375649,0.00016598,2]
[363751539,1748861437862,-430.0,0.00016597,2]
[363751541,1748861437872,-84.23364687,0.00016598,2]
[363751553,1748861437969,-262.34259664,0.00016598,2]
[363751555,1748861437980,-430.0,0.00016598,2]
[363751557,1748861437989,-430.0,0.00016598,2]
[363751559,1748861437999,-401.65262102,0.00016598,2]
[363751561,1748861438008,-681.85,0.00016598,2]
[363751563,1748861438018,-430.0,0.00016598,2]
[363751565,1748861438027,-430.0,0.00016598,2]
[363751567,1748861438036,-430.0,0.00016598,2]
[363751569,1748861438046,-490.67206302,0.00016598,2]
[363751571,1748861438056,-430.0,0.00016598,2]
[363751573,1748861438065,-413.8319369,0.00016598,2]
[363751575,1748861438075,-430.0,0.00016598,2]
[363751577,1748861438084,-430.0,0.00016598,2]
[363751579,1748861438094,-509.08174055,0.00016598,2]
[363751581,1748861438104,-430.0,0.00016598,2]
[363751582,1748861438113,-500.0,0.00016598,2]
[363751584,1748861438123,-180.45165963,0.00016598,2]
[363751586,1748861438133,-500.0,0.00016598,2]
[363751588,1748861438142,-563.46561552,0.00016598,2]
[363751590,1748861438151,-437.79,0.00016598,2]
[363751592,1748861438161,-724.43,0.00016598,2]
[363751594,1748861438170,-430.0,0.00016598,2]
[363751596,1748861438180,-430.0,0.00016598,2]
[363751598,1748861438189,-430.0,0.00016598,2]
[363751600,1748861438199,-430.0,0.00016598,2]
[363751602,1748861438209,-430.0,0.00016598,2]
[363751604,1748861438218,-430.0,0.00016598,2]
[363751606,1748861438227,-430.0,0.00016598,2]
[363751608,1748861438236,-430.0,0.00016598,2]
[363751610,1748861438245,-1230.02,0.00016598,2]
[363751612,1748861438254,-430.0,0.00016598,2]
[363751614,1748861438264,-430.0,0.00016598,2]
[363751616,1748861438273,-430.0,0.00016598,2]
[363751618,1748861438282,-430.0,0.00016598,2]
[363751620,1748861438292,-430.0,0.00016598,2]
[363751622,1748861438302,-432.42901858,0.00016598,2]
[363751624,1748861438311,-431.413275,0.00016598,2]
[363751626,1748861438321,-430.0,0.00016598,2]
[363751628,1748861438330,-430.0,0.00016598,2]
[363751630,1748861438340,-411.0614052,0.00016598,2]
[363751632,1748861438349,-430.0,0.00016598,2]
[363751634,1748861438359,-430.0,0.00016598,2]
[363751636,1748861438369,-1724.93,0.00016598,2]
[363751638,1748861438377,-430.0,0.00016598,2]
[363751640,1748861438387,-3273.3,0.00016598,2]
[363751641,1748861438402,-430.0,0.00016598,2]
[363751643,1748861438412,-403.13934734,0.00016598,2]
[363751646,1748861438422,-430.0,0.00016598,2]
[363751647,1748861438435,-430.0,0.00016598,2]
[363751649,1748861438445,-430.0,0.00016598,2]
[363751651,1748861438455,-430.0,0.00016598,2]
[363751653,1748861438464,-430.0,0.00016598,2]
[363751655,1748861438474,-217.37314598,0.00016598,2]
[363751657,1748861438484,-430.0,0.00016598,2]
[363751659,1748861438493,-430.0,0.00016598,2]
[363751661,1748861438503,-430.0,0.00016598,2]
[363751663,1748861438513,-430.0,0.00016598,2]
[363751665,1748861438523,-435.81729814,0.00016598,2]
[363751667,1748861438532,-430.0,0.00016598,2]
[363751669,1748861438541,-430.0,0.00016598,2]
[363751671,1748861438551,-430.0,0.00016598,2]
[363751673,1748861438561,-430.0,0.00016598,2]
[363751675,1748861438571,-2305.16,0.00016598,2]
[363751677,1748861438580,-370.35426321,0.00016598,2]
[363751679,1748861438590,-398.63942026,0.00016598,2]
[363751681,1748861438600,-430.0,0.00016598,2]
[363751683,1748861438609,-1638.59,0.00016598,2]
[363751685,1748861438619,-430.0,0.00016598,2]
[363751687,1748861438628,-430.0,0.00016598,2]
[363751689,1748861438638,-430.0,0.00016598,2]
[363751691,1748861438649,-430.0,0.00016598,2]
[363751693,1748861438659,-500.0,0.00016599,2]
[363751695,1748861438668,-430.0,0.00016599,2]
[363751697,1748861438677,-430.0,0.00016599,2]
[363751699,1748861438688,-430.0,0.00016599,2]
[363751701,1748861438697,-472.10452465,0.00016599,2]
[363751703,1748861438706,-430.0,0.00016599,2]
[363751705,1748861438716,-510.0,0.00016599,2]
[363751707,1748861438726,-219.0,0.00016599,2]
[363751709,1748861438735,-430.0,0.00016599,2]
[363751711,1748861438745,-430.0,0.00016599,2]
[363751713,1748861438755,-430.0,0.00016599,2]
[363751715,1748861438765,-430.0,0.00016599,2]
[363751717,1748861438775,-430.0,0.00016599,2]
[363751718,1748861438784,-430.0,0.00016599,2]
[363751720,1748861438793,-430.0,0.00016599,2]
[363751722,1748861438803,-430.0,0.00016599,2]
[363751724,1748861438813,-430.0,0.00016599,2]
[363751726,1748861438823,-430.0,0.00016599,2]
[363751729,1748861438833,-430.0,0.00016599,2]
[363751730,1748861438842,-430.0,0.00016599,2]
[363751732,1748861438851,-430.0,0.00016599,2]